Cogmind - Beta 16 *** ADVENTURER MODE // 2025.11.05 @ 21:36:55 Player: videl Result: Self-destructed Performance ------------- Evolutions (1) 500 Regions Visited (2) 400 Robots Destroyed (18) 90 Value Destroyed (415) 415 Prototype IDs (0) 0 Alien Tech Used (0) 0 Bonus (0) 0 TOTAL SCORE: 1405 Bonus ------- None Cogmind --------- Core Integrity 340/400 Matter 290/300 Energy 265/265 System Corruption 4% Temperature Warm (178) Movement Treading (240) Ox1 Location -9/Materials Parts ------- > --- POWER (1) -------- Improved Ion Engine > --- PROPULSION (3) --- Light Treads Light Treads Light Treads > --- UTILITY (3) ------ Huge Storage Unit Terrain Scanner Utility Shielding > --- WEAPON (2) ------- Medium Laser Medium Laser > --- INVENTORY (25) --- Light Ion Engine Light Ion Engine Aluminum Leg Aluminum Leg Small Storage Unit Medium Matter Pod (20) Utility Shielding Light Armor Plating Small Laser Assault Rifle Grenade Launcher Peak State ------------ > --- POWER ------------ Improved Ion Engine > --- PROPULSION ------- Light Treads Light Treads Light Treads > --- UTILITY ---------- Huge Storage Unit Terrain Scanner Utility Shielding > --- WEAPON ----------- Medium Laser Medium Laser > --- INVENTORY -------- Light Ion Engine Light Ion Engine Aluminum Leg Aluminum Leg Small Storage Unit Medium Matter Pod Utility Shielding Light Armor Plating Small Laser Assault Rifle Grenade Launcher [Rating: 11] Favorites ----------- Power Light Ion Engine Engine Light Ion Engine Propulsion Light Treads Treads Light Treads Utility Terrain Scanner Device Terrain Scanner Storage Huge Storage Unit Protection Utility Shielding Weapon Medium Laser Energy Gun Medium Laser Build | -11 -10 -9 ------- Run | Yrd Mat Mat Slots Evolved 2 | . . 2 Power . | . . . Propulsion 1 | . . 1 Utility 1 | . . 1 Weapon . | . . . Parts Attached 14 | 5 5 4 Power 2 | 1 . 1 Engine 2 | 1 . 1 Core . | . . . Reactor . | . . . Propulsion 4 | 2 . 2 Treads 4 | 2 . 2 Leg . | . . . Wheel . | . . . Hover . | . . . Flight . | . . . Utility 4 | 1 2 1 Device 1 | . 1 . Storage 2 | 1 1 . Processor . | . . . Hackware . | . . . Protection 1 | . . 1 Artifact . | . . . Weapon 4 | 1 3 . Energy Gun 4 | 1 3 . Energy Cannon . | . . . Ballistic Gun . | . . . Ballistic Cannon . | . . . Launcher . | . . . Special Weapon . | . . . Impact Weapon . | . . . Slashing Weapon . | . . . Piercing Weapon . | . . . Special Melee Weapon . | . . . Unidentified Prototypes . | . . . Parts Lost 2 | . . 2 Power . | . . . Propulsion 1 | . . 1 Utility . | . . . Weapon 1 | . . 1 Highest Loss Streak 1 | . . 1 To Critical Strikes . | . . . Average Backups 8 | 3 8 11 Power 1 | . 1 1 Propulsion 1 | 1 2 2 Utility 2 | . 2 3 Weapon 3 | 1 3 3 Tool/Special . | . . . Unused Backups 9 | . 1 8 Power 1 | . . 1 Propulsion 2 | . . 2 Utility 3 | . . 3 Weapon 3 | . 1 2 Tool/Special . | . . . Average Slot Usage (%) 92 | . 94 88 Engine 12 | . 14 11 Treads 27 | . 28 27 Device 10 | . 10 11 Storage 12 | . 14 11 Protection 3 | . . 11 Energy Gun 23 | . 26 17 Peak Build Rating 11 | 5 8 11 Average Rating 7 | 4 7 9 On Entrance 4 | . 5 8 Avg Prop Armor Cover (%) . | . . . Naked Turns . | . . . Heaviest Build 93 | 10 87 93 Greatest Support 60 | 40 40 60 Greatest Overweight (x) 2 | . 2 2 Average Overweight (x) . | . . 1 Largest Inventory Capacity 25 | 8 25 25 Average Capacity 18 | 7 17 25 Most Carried 13 | 5 11 13 Average Carried 8 | 3 8 11 Final Capacity 25 | 8 25 25 Final Carried 11 | 5 11 11 Class Distribution -------------------- 100% | Mutant Dominant Class ---------------- Mutant | -10/Materials Mutant | -9/Materials Resources | -11 -10 -9 ----------- Run | Yrd Mat Mat Matter Collected 355 | 250 40 65 Remotely . | . . . Salvage Created 551 | . 166 385 Parts 34 | . 13 21 Haulers Intercepted . | . . . Recyclers Shooed . | . . . Parts Field Recycled . | . . . Retrieved Matter . | . . . Parts Self-Destructed . | . . . Prevented . | . . . Parts Restored . | . . . Kills | -11 -10 -9 ------- Run | Yrd Mat Mat Combat Hostiles Destroyed 17 | . 7 10 Guns 17 | . 7 10 Classes Destroyed 5 | . 2 3 Watcher 1 | . . 1 Swarmer 9 | . 5 4 Grunt 5 | . 2 3 Brawler 1 | . . 1 Sentry 2 | . . 2 Best Kill Streak 6 | . 5 6 Combat Bots Only 6 | . 5 6 Max Kills in Single Turn 1 | . 1 1 Gunslinging . | . . . Exploded . | . . . Melee . | . . . Uniques/NPCs Destroyed . | . . . Combat | -11 -10 -9 -------- Run | Yrd Mat Mat Hostile Shots Fired 100 | . 37 63 Missed 28 | . 10 18 Hits 72 | . 27 45 Melee 2 | . . 2 Projectile 70 | . 27 43 Critical Strikes 3 | . 2 1 Actively Blocked 1 | . . 1 Damage Taken 602 | . 189 413 Core 96 | . 36 60 Absorbed by Shields . | . . . Redirected to Shielding 15 | . . 15 Ignored by Resistances 188 | . 63 125 Core Remaining (%) 92 | 100 85 . Volleys Fired 43 | . 14 29 Largest 2 | . 2 2 Hottest 100 | . 90 100 Shots Fired 70 | . 27 43 Gun 70 | . 27 43 Cannon . | . . . Launcher . | . . . Special . | . . . Kinetic . | . . . Thermal 70 | . 27 43 Explosive . | . . . Electromagnetic . | . . . Robot Hit Streak 14 | . 8 14 Robot Miss Streak 2 | . 2 1 Penetration Max . | . . . Secondary Targets 1 | . . 1 Max Gunslinging Chain 1 | . . 1 Shots Hit Robots 58 | . 20 38 Core Hits 28 | . 10 18 Critical Kills . | . . . Critical Parts Destroyed . | . . . Critical Strikes 1 | . 1 . Burn 1 | . 1 . Melee Attacks . | . . . Impact . | . . . Slashing . | . . . Piercing . | . . . Sneak Attacks . | . . . Combat Hostiles . | . . . Follow-up Attacks . | . . . Damage Inflicted 707 | . 241 466 Guns 705 | . 241 464 Cannons . | . . . Explosions . | . . . Melee . | . . . Ramming 2 | . . 2 Kinetic . | . . . Thermal 705 | . 241 464 Explosive . | . . . Electromagnetic . | . . . Impact . | . . . Slashing . | . . . Piercing . | . . . Highest Corruption 4 | . . 4 Average Corruption 4 | . . 4 Corruption Purged . | . . . Corruption Blocked . | . . . Effects 1 | . . 1 Alerts 1 | . . 1 Overload Shots . | . . . Overflow Damage . | . . . Projectiles . | . . . Explosions . | . . . Melee . | . . . Knockbacks . | . . . Impact . | . . . Kinetic . | . . . Secondary . | . . . Self-Inflicted Damage . | . . . Shots . | . . . Rammed 1 | . . 1 Targets Rammed 1 | . . 1 Kicked . | . . . Crushed . | . . . Highest Temperature 219 | . 219 178 Average Temperature 64 | . 86 47 Received Heat Transfer 228 | . 69 159 Siege Activations . | . . . Martial Activations . | . . . Shielding Activations . | . . . Robots Disrupted . | . . . Combat Hostiles . | . . . Robots Corrupted . | . . . Combat Hostiles . | . . . Parts Fried . | . . . Impact Corruptions . | . . . Robots Melted . | . . . Combat Hostiles . | . . . Parts Melted 6 | . 1 5 Heat Transferred 2052 | . 706 1346 Parts Sabotaged . | . . . Parts Stolen . | . . . Parts Stripped . | . . . Power Chain Reactions . | . . . Alert | -11 -10 -9 ------- Run | Yrd Mat Mat Maximum Alert Level . | . . . Low Security (%) 100 | 100 100 100 Level 1 . | . . . Level 2 . | . . . Level 3 . | . . . Level 4 . | . . . Level 5 . | . . . High Security . | . . . Max Security . | . . . Peak Influence 120 | . 110 120 Initial . | . . . Average 24 | . 21 42 Influence Increases 444 | . 187 257 Destroy 0b10 Robot/C 340 | . 140 200 Destroy 0b10 Robot/NC 5 | . . 5 Destroy Leader 82 | . 30 52 Successful Hack 17 | . 17 . Influence Decreases 334 | . 187 147 Time Decay 314 | . 187 127 Lost Part 20 | . . 20 Squads Dispatched 2 | . . 2 Investigation . | . . . Extermination . | . . . Reinforcement 2 | . . 2 Assault . | . . . Garrison . | . . . Intercept . | . . . Searches Triggered . | . . . Construction Impeded . | . . . Haulers Reinforced . | . . . Active Scanning Responses . | . . . Cargo Convoy Interrupts . | . . . Stealth | -11 -10 -9 --------- Run | Yrd Mat Mat Distress Signals 2 | . 1 1 Communications Jammed . | . . . Distress Signals . | . . . Times Spotted 28 | . 12 16 Peak Tracking Total 8 | . 8 6 Tactical Retreats . | . . . Traps | -11 -10 -9 ------- Run | Yrd Mat Mat Traps Triggered . | . . . Indirectly . | . . . Trap Hack Attempts . | . . . Triggered . | . . . Disarmed . | . . . Reprogrammed . | . . . Reused . | . . . Traps Extracted . | . . . Installed . | . . . Triggered . | . . . Machines | -11 -10 -9 ---------- Run | Yrd Mat Mat Machines Disabled . | . . . Max in Single Turn . | . . . Machines Repaired . | . . . Machines Dismantled . | . . . Machines Sabotaged . | . . . Overloaded Fab Kills . | . . . Hacking | -11 -10 -9 --------- Run | Yrd Mat Mat Machines Accessed 3 | . 3 . Terminals 3 | . 3 . Fabricators . | . . . Repair Stations . | . . . Recycling Units . | . . . Scanalyzers . | . . . Garrison Access . | . . . Total Hacks 6 | . 6 . Successful 5 | . 5 . Failed 1 | . 1 . Catastrophic . | . . . Database Lockouts . | . . . Manual . | . . . Terminals 6 | . 6 . Fabricators . | . . . Repair Stations . | . . . Recycling Units . | . . . Scanalyzers . | . . . Garrison Access . | . . . Terminal Hacks 5 | . 5 . Terminal Index 1 | . 1 . Locate Traps 1 | . 1 . Dispatch Records 1 | . 1 . Registered Components 1 | . 1 . Zone Layout 1 | . 1 . Fabricator Hacks . | . . . Repair Station Hacks . | . . . Recycling Unit Hacks . | . . . Scanalyzer . | . . . Garrison Access Hacks . | . . . Unauthorized Hacks . | . . . Terminals . | . . . Fabricators . | . . . Repair Stations . | . . . Recycling Units . | . . . Scanalyzers . | . . . Garrison Access . | . . . Data Cores Recovered . | . . . Used . | . . . Hacking Detections 2 | . 2 . Full Trace Events . | . . . Feedback Events . | . . . Feedback Blocked . | . . . Robot Schematics Acquired . | . . . Robots Built . | . . . Authchips . | . . . Time . | . . . Total Robot Build Rating . | . . . Part Schematics Acquired . | . . . Parts Built . | . . . Authchips . | . . . Time . | . . . Total Part Build Rating . | . . . Part Studies Acquired . | . . . Parts Repaired . | . . . Time . | . . . Parts Recycled . | . . . Recycled Matter . | . . . Retrieved Matter . | . . . Retrieved Components . | . . . Parts Scanalyzed . | . . . Part Schematics Acquired . | . . . Parts Damaged . | . . . Bothacking | -11 -10 -9 ------------ Run | Yrd Mat Mat Used RIF Installer . | . . . Robots Hacked . | . . . Non-combat . | . . . Combat . | . . . Robot Hacks Applied . | . . . Relay Couplers Released . | . . . Fabnet Peak Effective % . | . . . Robots Rewired . | . . . Allies Hacked . | . . . Hacks Repelled . | . . . Allies | -11 -10 -9 -------- Run | Yrd Mat Mat Total Allies . | . . . Largest Group . | . . . Highest-Rated Group . | . . . Highest-Rated Ally . | . . . Total Orders . | . . . Ally Attacks . | . . . Total Damage . | . . . Kills . | . . . Allies Corrupted . | . . . Allies Melted . | . . . Intel | -11 -10 -9 ------- Run | Yrd Mat Mat Active Infowar (turns) 826 | . 491 335 Terrain 826 | . 491 335 Robot Analysis Total . | . . . Derelict Logs Recovered . | . . . Drone Launches . | . . . Drone Recoveries . | . . . Exploration | -11 -10 -9 ------------- Run | Yrd Mat Mat Turns Passed 1135 | 146 654 335 Spaces Moved 442 | 91 263 88 Core 12 | 12 . . Treads 430 | 79 263 88 Legs . | . . . Wheels . | . . . Hover . | . . . Flight . | . . . Fastest Speed 50 | 50 160 240 Average Speed 219 | 145 227 270 Slowest Speed 320 | 160 320 320 Overloaded Moves . | . . . Propulsion Burnouts . | . . . Robots Hopped . | . . . Potential Cave-ins . | . . . Cave-ins Triggered . | . . . Exploration Rate (%) 24 | 5 55 13 Regions Visited 2 Branch Regions . Pre-discovered Areas . | . . . Known Exits Taken . | . . . Unknown Exits Taken 2 | 1 1 . Scrap Searched . | . . . Spaces Dug . | . . . Terrain Destroyed . | . . . Melee . | . . . Projectile . | . . . AOE . | . . . Terrain Rammed . | . . . Walls Destroyed . | . . . Machines Disabled . | . . . Actions | -11 -10 -9 --------- Run | Yrd Mat Mat Total 536 | 105 292 139 Wait 16 | . 2 14 Move 440 | 90 262 88 Hop . | . . . Pick Up 19 | 10 7 2 Fast Attach 1 | . . 1 Attach 10 | 5 2 3 Detach . | . . . Swap 5 | . 4 1 Drop 1 | . 1 . Fire 43 | . 14 29 Melee . | . . . Ram . | . . . Kick . | . . . Crush 1 | . . 1 Escape Stasis . | . . . Rewire . | . . . Trap . | . . . Miscellaneous . | . . . Route ------- -11/Scrapyard -10/Materials (discovered 2 exits: [*Mat] / [*Min]) -9/Materials History --------- Turn | Location | Event 16 | -11/Scrapyard | Discovered new exit (range 16) 147 | -11/Scrapyard | Entered Materials 310 | -10/Materials | Build established: Mutant 476 | -10/Materials | Discovered new exit (range 15) 753 | -10/Materials | Discovered new exit (range 9) 801 | -10/Materials | Entered another Materials area 801 | -9/Materials | Evolved 2 slots: Propulsion x1, Utility x1 1136 | -9/Materials | Self-destructed Last Messages --------------- S-10 Pest destroyed. ALERT: Hostiles spotted, dispatching reinforcements to Terminal M002. G-34 Mercenary destroyed. K-01 Serf collects debris. Acquired 37 matter. K-01 Serf collects debris. Lgt. Treads destroyed. System corrupted by crushing effect (+4). B-36 Bruiser heat damages Lgt. Armor Plating. B-36 Bruiser overheating. Hammer melted. Lgt. Treads melted. B-36 Bruiser destroyed. Switching to secondary target: G-34 Mercenary. K-01 Serf collects debris. System corrupted: IFF burst signal emitted. Acquired Lgt. Treads. K-01 Serf collects debris. K-01 Serf destroyed. Map ----- +----------------------------------------------------+ | ?????# # #?#?#?#???? | | ?????###########+##########????#?#??? | | ??#??????????# ############?????? | | ??????????#??# ????? | | ????????#?#### " ????? | | ????#????????# ????? | | ?????????????# ###########??????? | | ???????#??#??### ######?????#???????? | | ???????????#???# #??????????????????? | | ????????????#??# #???####???????????? | | ?????????#???### #???#???????#??????? | | ????#??????????# ##?????????????????? | | ???#??##########+#????#??#??????????? | | ???????# ##?????????????????? | | ?????#?# #?#???##???????????? | | ???#???# """ """ #??#???????????????? | | ???????# """ """ ##???#??#??????????? | | ???????#=""" """ #???#??????????????? | | ?? ??#[""" """ #????#?????????????? | | ???????#="""=""" #???#??????????????? | | ??"? ??#= [*%* #??#???????????????? | | ?""" ??#+##+##############??????????? | | ??" #%=%*[m =! #??????????? | | ???? +[* %= == #??????????? | | ???????# %%!| "#??#???????? | | ???????# @ |! "#??????????? | | #?""???# "#??????????? | | ????? + T#??????????? | | ?????? ### a gg "#??????????? | | ????? ??# """ """ "#??????????? | | ?????##?## """ """ "#??????????? | | ?????????# """ """ ??????????? | | ?????????# # ????????? | | ????????? o ????#??????????? | | ????????## #######???????????????? | | ?????????# ??????????????????????? | | ?????????# ??????????????????????? | | ????????## ###??????????????????????? | | ?????????# ?????#???????????????????? | | ?????????# ?????????????????????????? | | ?????????? ?????????????????????????? | | ????????????????????????????????????? | | ????????????????????????????????????? | | ????????????????????????????????????? | | ????????????????????????????????????? | | ????????????????????????????????????? | | ????????????????????????????????????? | | ????????????????????????????????????? | | ????????????????????????????????????? | | ????????????????????????????????????? | +----------------------------------------------------+ Best States ------------- Heat Dissipation 28 Energy Generation 12 Energy Capacity 265 Matter Stores 300 Matter Capacity 300 Sight Range 16 Terrain Scan Range 14 Terrain Scan Density 10 Resistance: KI 20 Resistance: TH 20 Resistance: EX 20 Resistance: EM 20 Resistance: I 20 Resistance: S 20 Resistance: P 20 Utility Shielding 33 Evasion (%) 50 Recoil Reduction 3 Offensive Hacking 10 Item Schematics ----------------- None Robot Schematics ------------------ None Fabricated ------------ Nothing Repaired ---------- Nothing Studied --------- None Alien Tech Used ----------------- None Achievements -------------- Ghost 'Em Challenges ------------ None Game ------ Seed InsulatedOpticalAccelerator Manual? 0 Play Time 00:10:42 Cumulative 2.4 hours Start 2025.11.05 @ 21:28:35 End 2025.11.05 @ 21:36:55 Sessions 1 Manual Loads 0 Difficulty Adventurer Special Mode None Game No. 4 Rogue 0 Adventurer 4 Explorer 0 Win Type - Total 0 Types 0/0/0/0/0/0/0/0/0/0 Lore% 1 Gallery% 5 Achievement% 6 Wizard Run 0 Options --------- Layout 1 ASCII 0 Keyboard 0 Movement Mouse Keybinds 0 Fullscreen 1 Font 24/Smallcaps Map View 50x35 Zoom Use 0% Tactical HUD 0 Map Filters NONE Filters NONE Steam 0 RUN: 9a3149f4-15dc-4460-8a5c-d8d157dc0bd8